[Event "Late-Titled-Tuesday-Blitz-January-30-2024"]
[Site "Chess.com"]
[Date "2024.01.30"]
[Round "3"]
[White "ArturoCaceres"]
[Black "INLOVEWITHF"]
[Result "1/2-1/2"]
[WhiteElo "2440"]
[BlackElo "2593"]
[TimeControl "180+1"]
[EndTime "14:28:59 PST"]
[Termination "Game drawn - insufficient material"]

1. d4 {[%clk 0:03:00.9]} 1... Nf6 {[%clk 0:02:58.8]} 2. Nf3 {[%clk 0:02:59.9]}
2... g6 {[%clk 0:02:59.7]} 3. Bg5 {[%clk 0:02:57.5]} 3... Bg7 {[%clk 0:02:59.9]}
4. Nc3 {[%clk 0:02:57.8]} 4... d5 {[%clk 0:02:59.3]} 5. Qd2 {[%clk 0:02:58.1]}
5... O-O {[%clk 0:02:58.9]} 6. Bh6 {[%clk 0:02:58.4]} 6... Ne4 {[%clk
0:02:49.2]} 7. Nxe4 {[%clk 0:02:53.3]} 7... dxe4 {[%clk 0:02:50.1]} 8. Bxg7
{[%clk 0:02:53.3]} 8... Kxg7 {[%clk 0:02:49.5]} 9. Ng1 {[%clk 0:02:40.7]} 9...
e5 {[%clk 0:02:44.4]} 10. dxe5 {[%clk 0:02:25.7]} 10... Qxd2+ {[%clk 0:02:43.3]}
11. Kxd2 {[%clk 0:02:26.6]} 11... Re8 {[%clk 0:02:43.7]} 12. f4 {[%clk 0:02:27]}
12... exf3 {[%clk 0:02:36.7]} 13. exf3 {[%clk 0:02:25.4]} 13... Rxe5 {[%clk
0:02:35.9]} 14. Bd3 {[%clk 0:02:25.7]} 14... Nc6 {[%clk 0:02:34.4]} 15. a3
{[%clk 0:02:26.2]} 15... Bf5 {[%clk 0:02:33.3]} 16. Bxf5 {[%clk 0:02:20.4]}
16... Rxf5 {[%clk 0:02:32.8]} 17. Rd1 {[%clk 0:02:15.3]} 17... Rd8+ {[%clk
0:02:18.4]} 18. Kc1 {[%clk 0:02:14]} 18... Re8 {[%clk 0:02:02.3]} 19. Nh3 {[%clk
0:02:03.8]} 19... Re2 {[%clk 0:02:01.8]} 20. Rd2 {[%clk 0:02:03.1]} 20... Rfe5
{[%clk 0:02:02.5]} 21. Rhd1 {[%clk 0:01:57.2]} 21... Rxd2 {[%clk 0:01:47.3]} 22.
Kxd2 {[%clk 0:01:48.9]} 22... g5 {[%clk 0:01:43.4]} 23. Nf2 {[%clk 0:01:46.4]}
23... f5 {[%clk 0:01:43.9]} 24. Nd3 {[%clk 0:01:46.6]} 24... Re7 {[%clk
0:01:43]} 25. h4 {[%clk 0:01:37.9]} 25... h6 {[%clk 0:01:36.1]} 26. hxg5 {[%clk
0:01:32.4]} 26... hxg5 {[%clk 0:01:37]} 27. Re1 {[%clk 0:01:21.3]} 27... Rxe1
{[%clk 0:01:35.9]} 28. Kxe1 {[%clk 0:01:21]} 28... Kf6 {[%clk 0:01:36.5]} 29.
Nc5 {[%clk 0:01:18.9]} 29... b6 {[%clk 0:01:30.4]} 30. Na6 {[%clk 0:01:12.2]}
30... Nd4 {[%clk 0:01:26.1]} 31. Nxc7 {[%clk 0:01:10.9]} 31... Nxc2+ {[%clk
0:01:25.5]} 32. Kd2 {[%clk 0:01:09.1]} 32... Nd4 {[%clk 0:01:26.2]} 33. Kd3
{[%clk 0:01:07]} 33... Ke5 {[%clk 0:01:24.4]} 34. a4 {[%clk 0:00:55.6]} 34... f4
{[%clk 0:01:23.5]} 35. b4 {[%clk 0:00:53.4]} 35... Nf5 {[%clk 0:01:14.5]} 36. a5
{[%clk 0:00:40.4]} 36... bxa5 {[%clk 0:01:06.3]} 37. bxa5 {[%clk 0:00:40.8]}
37... Nh4 {[%clk 0:01:05.9]} 38. Nb5 {[%clk 0:00:18.1]} 38... a6 {[%clk
0:01:04.6]} 39. Nc7 {[%clk 0:00:18.6]} 39... Nxg2 {[%clk 0:01:01.2]} 40. Nxa6
{[%clk 0:00:18.7]} 40... Nh4 {[%clk 0:01:00.6]} 41. Ke2 {[%clk 0:00:17.5]} 41...
Kd6 {[%clk 0:00:50.3]} 42. Nb4 {[%clk 0:00:17]} 42... Kc5 {[%clk 0:00:48.4]} 43.
a6 {[%clk 0:00:08.3]} 43... Kb6 {[%clk 0:00:48.3]} 44. Nd5+ {[%clk 0:00:05.4]}
44... Ka7 {[%clk 0:00:44.4]} 45. Nc3 {[%clk 0:00:06.3]} 45... Nf5 {[%clk
0:00:41]} 46. Ne4 {[%clk 0:00:06.4]} 46... Nd4+ {[%clk 0:00:41.6]} 47. Kf2
{[%clk 0:00:06.9]} 47... Ne6 {[%clk 0:00:42.2]} 48. Kg2 {[%clk 0:00:05.1]} 48...
Kxa6 {[%clk 0:00:41.5]} 49. Kh3 {[%clk 0:00:05.6]} 49... Kb5 {[%clk 0:00:32.6]}
50. Kg4 {[%clk 0:00:05.7]} 50... Kc4 {[%clk 0:00:32.5]} 51. Nxg5 {[%clk
0:00:05.2]} 51... Nd4 {[%clk 0:00:29.5]} 52. Kxf4 {[%clk 0:00:05.2]} 52... Nxf3
{[%clk 0:00:30.4]} 1/2-1/2

[Event "Late-Titled-Tuesday-Blitz-January-30-2024"]
[Site "Chess.com"]
[Date "2024.01.30"]
[Round "3"]
[White "vidavi"]
[Black "zverr1"]
[Result "1-0"]
[WhiteElo "2451"]
[BlackElo "2589"]
[TimeControl "180+1"]
[EndTime "14:29:03 PST"]
[Termination "vidavi won on time"]

1. e4 {[%clk 0:03:00.9]} 1... c5 {[%clk 0:02:59.9]} 2. Nf3 {[%clk 0:03:01.1]}
2... g6 {[%clk 0:02:59.6]} 3. d4 {[%clk 0:03:01.5]} 3... cxd4 {[%clk 0:03:00.5]}
4. Qxd4 {[%clk 0:03:01.6]} 4... Nf6 {[%clk 0:03:00.7]} 5. e5 {[%clk 0:03:01.1]}
5... Nc6 {[%clk 0:03:00.4]} 6. Qd2 {[%clk 0:02:58.4]} 6... Ng4 {[%clk
0:02:31.7]} 7. Qf4 {[%clk 0:02:57.5]} 7... Ngxe5 {[%clk 0:02:25.1]} 8. Nxe5
{[%clk 0:02:49.7]} 8... Qa5+ {[%clk 0:02:22.5]} 9. Bd2 {[%clk 0:02:48.6]} 9...
Qxe5+ {[%clk 0:02:19.4]} 10. Qxe5 {[%clk 0:02:49]} 10... Nxe5 {[%clk 0:02:20.3]}
11. Bc3 {[%clk 0:02:49.4]} 11... f6 {[%clk 0:02:21]} 12. Nd2 {[%clk 0:02:46.6]}
12... Bg7 {[%clk 0:02:16.3]} 13. O-O-O {[%clk 0:02:46.8]} 13... e6 {[%clk
0:02:11.8]} 14. f4 {[%clk 0:02:45.5]} 14... Nc6 {[%clk 0:02:11.8]} 15. h4 {[%clk
0:02:45.6]} 15... d5 {[%clk 0:02:09.3]} 16. Nf3 {[%clk 0:02:42.8]} 16... Kf7
{[%clk 0:02:06.3]} 17. h5 {[%clk 0:02:42.4]} 17... Re8 {[%clk 0:02:04.6]} 18.
Bd3 {[%clk 0:02:33.5]} 18... Bd7 {[%clk 0:01:11]} 19. hxg6+ {[%clk 0:02:32.6]}
19... hxg6 {[%clk 0:01:11]} 20. Rh7 {[%clk 0:02:32.9]} 20... Rh8 {[%clk
0:00:59.2]} 21. Ng5+ {[%clk 0:02:21.8]} 21... Kf8 {[%clk 0:00:47.7]} 22. Bxg6
{[%clk 0:01:57.9]} 22... d4 {[%clk 0:00:45.6]} 23. Bxd4 {[%clk 0:01:55.5]} 23...
Rxh7 {[%clk 0:00:18.7]} 24. Nxh7+ {[%clk 0:01:53.8]} 24... Ke7 {[%clk
0:00:18.5]} 25. Bc5+ {[%clk 0:01:50.1]} 25... Kd8 {[%clk 0:00:18.9]} 26. Bf8
{[%clk 0:01:43.6]} 26... Bh8 {[%clk 0:00:14.8]} 27. Bd6 {[%clk 0:01:41.2]} 27...
Ne7 {[%clk 0:00:07.7]} 28. Bf7 {[%clk 0:01:37.6]} 28... Nc8 {[%clk 0:00:04.6]}
29. Bb4 {[%clk 0:01:28.3]} 29... Kc7 {[%clk 0:00:05.5]} 30. Nf8 {[%clk
0:01:27.3]} 30... Nb6 {[%clk 0:00:02.2]} 31. Nxd7 {[%clk 0:01:21.9]} 31... Nxd7
{[%clk 0:00:02.8]} 32. Bxe6 {[%clk 0:01:22.2]} 32... Nb6 {[%clk 0:00:02.4]} 33.
Rh1 {[%clk 0:01:17.4]} 33... Re8 {[%clk 0:00:02.3]} 34. f5 {[%clk 0:01:14.3]}
34... Kc6 {[%clk 0:00:03]} 35. Rh7 {[%clk 0:01:12.4]} 35... Rd8 {[%clk
0:00:03.2]} 36. Be7 {[%clk 0:01:09.3]} 36... Re8 {[%clk 0:00:02.1]} 37. Bb4
{[%clk 0:01:08.8]} 37... Rd8 {[%clk 0:00:02.3]} 38. b3 {[%clk 0:01:09.2]} 38...
Re8 {[%clk 0:00:02.6]} 39. a4 {[%clk 0:01:08.6]} 39... Rd8 {[%clk 0:00:01.9]}
40. Kb2 {[%clk 0:01:07]} 40... a6 {[%clk 0:00:01.7]} 41. a5 {[%clk 0:01:06.6]}
41... Nd5 {[%clk 0:00:02.1]} 42. Be1 {[%clk 0:01:05.2]} 42... Ne3 {[%clk
0:00:01.9]} 43. Bg3 {[%clk 0:01:03.4]} 43... Kc5 {[%clk 0:00:02.4]} 44. Rc7+
{[%clk 0:01:02.2]} 44... Kd4 {[%clk 0:00:03.1]} 45. Rxb7 {[%clk 0:00:56.1]}
45... Nd1+ {[%clk 0:00:01.3]} 46. Kc1 {[%clk 0:00:55.4]} 46... Nc3 {[%clk
0:00:02.1]} 47. Rb6 {[%clk 0:00:40.9]} 47... Ne2+ {[%clk 0:00:02.4]} 48. Kb2
{[%clk 0:00:35.6]} 48... Nxg3 {[%clk 0:00:03.3]} 49. Rxa6 {[%clk 0:00:35.8]}
49... Bg7 {[%clk 0:00:02]} 50. Rb6 {[%clk 0:00:36]} 50... Bf8 {[%clk 0:00:01.4]}
51. a6 {[%clk 0:00:36]} 51... Bc5 {[%clk 0:00:02.1]} 52. Rb7 {[%clk 0:00:34.2]}
52... Ra8 {[%clk 0:00:02.6]} 53. b4 {[%clk 0:00:34.7]} 53... Ba7 {[%clk
0:00:01.2]} 54. Rd7+ {[%clk 0:00:33.5]} 1-0

[Event "Late-Titled-Tuesday-Blitz-January-30-2024"]
[Site "Chess.com"]
[Date "2024.01.30"]
[Round "3"]
[White "topalovkramnik"]
[Black "TimGrutter03"]
[Result "1-0"]
[WhiteElo "2448"]
[BlackElo "2587"]
[TimeControl "180+1"]
[EndTime "14:29:05 PST"]
[Termination "topalovkramnik won on time"]

1. e4 {[%clk 0:03:00.9]} 1... c5 {[%clk 0:02:59.6]} 2. Nf3 {[%clk 0:02:57.8]}
2... d6 {[%clk 0:02:58.9]} 3. d4 {[%clk 0:02:57.8]} 3... Nf6 {[%clk 0:02:58.2]}
4. Nc3 {[%clk 0:02:57.2]} 4... cxd4 {[%clk 0:02:58.3]} 5. Nxd4 {[%clk
0:02:58.1]} 5... a6 {[%clk 0:02:54.7]} 6. f4 {[%clk 0:02:57.3]} 6... Nbd7 {[%clk
0:02:53]} 7. a4 {[%clk 0:02:51.3]} 7... Qc7 {[%clk 0:02:52.3]} 8. Bd3 {[%clk
0:02:50.2]} 8... e6 {[%clk 0:02:50]} 9. Qf3 {[%clk 0:02:48.5]} 9... Nc5 {[%clk
0:02:44.5]} 10. Be3 {[%clk 0:02:47.1]} 10... Bd7 {[%clk 0:02:42.4]} 11. O-O
{[%clk 0:02:27.1]} 11... h5 {[%clk 0:02:40]} 12. Rae1 {[%clk 0:02:18.1]} 12...
Ng4 {[%clk 0:02:39.3]} 13. f5 {[%clk 0:02:10.5]} 13... Nxe3 {[%clk 0:02:37.7]}
14. Rxe3 {[%clk 0:02:05.2]} 14... O-O-O {[%clk 0:02:22.5]} 15. Ra1 {[%clk
0:01:50.7]} 15... Be7 {[%clk 0:02:14.6]} 16. b4 {[%clk 0:01:07]} 16... Nxd3
{[%clk 0:02:08.9]} 17. Rxd3 {[%clk 0:01:07.9]} 17... Kb8 {[%clk 0:02:03.7]} 18.
fxe6 {[%clk 0:01:03]} 18... fxe6 {[%clk 0:02:00.8]} 19. Qe3 {[%clk 0:01:03.7]}
19... Bf6 {[%clk 0:01:51.9]} 20. b5 {[%clk 0:01:01.5]} 20... a5 {[%clk
0:01:49.3]} 21. Nf3 {[%clk 0:00:56.9]} 21... Rc8 {[%clk 0:01:43.7]} 22. e5
{[%clk 0:00:49.3]} 22... dxe5 {[%clk 0:01:35.8]} 23. Ne4 {[%clk 0:00:49.7]}
23... Rhd8 {[%clk 0:01:27.7]} 24. Rc3 {[%clk 0:00:49.6]} 24... Qxc3 {[%clk
0:01:14.1]} 25. Nxc3 {[%clk 0:00:49.2]} 25... e4 {[%clk 0:01:14.6]} 26. Nd4
{[%clk 0:00:32.7]} 26... Rc4 {[%clk 0:00:46.1]} 27. Nce2 {[%clk 0:00:30.3]}
27... Rdc8 {[%clk 0:00:41.2]} 28. Rd1 {[%clk 0:00:24.4]} 28... e5 {[%clk
0:00:35.8]} 29. Nb3 {[%clk 0:00:20.9]} 29... Bg4 {[%clk 0:00:34.9]} 30. Rd2
{[%clk 0:00:13.3]} 30... Bd8 {[%clk 0:00:25.2]} 31. h3 {[%clk 0:00:10]} 31...
Be6 {[%clk 0:00:21.1]} 32. Kh2 {[%clk 0:00:05.6]} 32... Rxa4 {[%clk 0:00:20.3]}
33. Rxd8 {[%clk 0:00:04.8]} 33... Rxd8 {[%clk 0:00:19.2]} 34. Nc5 {[%clk
0:00:05.5]} 34... Rc4 {[%clk 0:00:09.1]} 35. Nxe6 {[%clk 0:00:06]} 35... Rdc8
{[%clk 0:00:08.9]} 36. Qb6 {[%clk 0:00:06.2]} 36... a4 {[%clk 0:00:06.6]} 37.
Ng3 {[%clk 0:00:03.7]} 37... e3 {[%clk 0:00:04.8]} 38. Qxe3 {[%clk 0:00:02.7]}
38... Rc3 {[%clk 0:00:05.3]} 39. Qxe5+ {[%clk 0:00:02.9]} 39... Ka8 {[%clk
0:00:05.6]} 40. Ne4 {[%clk 0:00:03.3]} 40... Rxc2 {[%clk 0:00:05.5]} 41. Qd6
{[%clk 0:00:02.4]} 41... Ka7 {[%clk 0:00:02.7]} 42. N4c5 {[%clk 0:00:02.8]}
42... b6 {[%clk 0:00:02.5]} 43. Qd7+ {[%clk 0:00:02.6]} 43... Rc7 {[%clk
0:00:02.8]} 44. Qxc7+ {[%clk 0:00:03]} 1-0

[Event "Late-Titled-Tuesday-Blitz-January-30-2024"]
[Site "Chess.com"]
[Date "2024.01.30"]
[Round "3"]
[White "miraitrunks"]
[Black "egnfanclub"]
[Result "0-1"]
[WhiteElo "2128"]
[BlackElo "2370"]
[TimeControl "180+1"]
[EndTime "14:29:06 PST"]
[Termination "egnfanclub won on time"]

1. e4 {[%clk 0:02:58.9]} 1... e5 {[%clk 0:02:59.3]} 2. Nf3 {[%clk 0:02:55.2]}
2... Nc6 {[%clk 0:02:56.6]} 3. Bb5 {[%clk 0:02:53.3]} 3... a6 {[%clk 0:02:56.6]}
4. Ba4 {[%clk 0:02:52.2]} 4... d6 {[%clk 0:02:57]} 5. O-O {[%clk 0:02:45.9]}
5... Bg4 {[%clk 0:02:56.4]} 6. c3 {[%clk 0:02:44]} 6... Qf6 {[%clk 0:02:55.8]}
7. d3 {[%clk 0:02:37.8]} 7... Ne7 {[%clk 0:02:53.8]} 8. Nbd2 {[%clk 0:02:36.5]}
8... Ng6 {[%clk 0:02:53.8]} 9. h3 {[%clk 0:02:35.3]} 9... h5 {[%clk 0:02:53.5]}
10. Re1 {[%clk 0:02:30.9]} 10... Nf4 {[%clk 0:02:53.2]} 11. Re3 {[%clk
0:02:25.5]} 11... Bxh3 {[%clk 0:02:48.4]} 12. gxh3 {[%clk 0:02:12.3]} 12... Qg6+
{[%clk 0:02:47.2]} 13. Kf1 {[%clk 0:02:06.2]} 13... Qg2+ {[%clk 0:02:46.9]} 14.
Ke1 {[%clk 0:02:06.1]} 14... Qh1+ {[%clk 0:02:46.1]} 15. Nf1 {[%clk 0:02:06]}
15... b5 {[%clk 0:02:28.4]} 16. Bb3 {[%clk 0:01:53.2]} 16... Ng2+ {[%clk
0:02:03.1]} 17. Ke2 {[%clk 0:01:43.6]} 17... Nxe3 {[%clk 0:01:44.3]} 18. Bxe3
{[%clk 0:01:44.5]} 18... Qxh3 {[%clk 0:01:36.4]} 19. Bxf7+ {[%clk 0:01:42.5]}
19... Kd7 {[%clk 0:01:33.6]} 20. Bd5 {[%clk 0:01:32.8]} 20... Be7 {[%clk
0:01:31.2]} 21. Qb3 {[%clk 0:01:18.8]} 21... Raf8 {[%clk 0:01:20.4]} 22. N1d2
{[%clk 0:01:16.2]} 22... Nd8 {[%clk 0:01:13]} 23. Rg1 {[%clk 0:01:07.9]} 23...
c6 {[%clk 0:01:13.3]} 24. Rg3 {[%clk 0:01:04.8]} 24... Qh1 {[%clk 0:01:10.3]}
25. Rxg7 {[%clk 0:00:50.4]} 25... cxd5 {[%clk 0:01:07.9]} 26. Qxd5 {[%clk
0:00:50.8]} 26... Ke8 {[%clk 0:00:31.6]} 27. Bb6 {[%clk 0:00:19]} 27... Qh3
{[%clk 0:00:25.6]} 28. Bxd8 {[%clk 0:00:18.3]} 28... Kxd8 {[%clk 0:00:26.3]} 29.
Nxe5 {[%clk 0:00:13.5]} 29... Ke8 {[%clk 0:00:05.6]} 30. Ng6 {[%clk 0:00:04.9]}
30... Qd7 {[%clk 0:00:02.7]} 31. Rxe7+ {[%clk 0:00:05]} 31... Qxe7 {[%clk
0:00:03.5]} 32. Nxe7 {[%clk 0:00:05.7]} 32... Kxe7 {[%clk 0:00:04.4]} 33. Nf3
{[%clk 0:00:04]} 33... h4 {[%clk 0:00:04.3]} 34. Qg5+ {[%clk 0:00:02.2]} 34...
Kd7 {[%clk 0:00:04.2]} 35. Nxh4 {[%clk 0:00:02.9]} 35... Rhg8 {[%clk 0:00:03.9]}
36. Qd5 {[%clk 0:00:00.2]} 36... Rh8 {[%clk 0:00:03.5]} 37. Nf5 {[%clk
0:00:01.1]} 37... Rf6 {[%clk 0:00:03]} 0-1

[Event "Late-Titled-Tuesday-Blitz-January-30-2024"]
[Site "Chess.com"]
[Date "2024.01.30"]
[Round "3"]
[White "TheCavemanChess"]
[Black "AsaHoffmann"]
[Result "1-0"]
[WhiteElo "2686"]
[BlackElo "2345"]
[TimeControl "180+1"]
[EndTime "14:29:07 PST"]
[Termination "TheCavemanChess won by resignation"]

1. Nf3 {[%clk 0:03:00.9]} 1... Nf6 {[%clk 0:02:58.8]} 2. g3 {[%clk 0:03:01.8]}
2... d6 {[%clk 0:02:56.5]} 3. Bg2 {[%clk 0:03:01]} 3... e5 {[%clk 0:02:56.5]} 4.
O-O {[%clk 0:03:01.1]} 4... Be7 {[%clk 0:02:56.6]} 5. c4 {[%clk 0:02:59.3]} 5...
Nc6 {[%clk 0:02:55]} 6. Nc3 {[%clk 0:02:59]} 6... Be6 {[%clk 0:02:54.7]} 7. d4
{[%clk 0:02:50.4]} 7... Bxc4 {[%clk 0:02:12.2]} 8. dxe5 {[%clk 0:02:38.8]} 8...
dxe5 {[%clk 0:02:10.9]} 9. Qa4 {[%clk 0:02:38]} 9... b5 {[%clk 0:01:41.5]} 10.
Nxb5 {[%clk 0:02:35.4]} 10... Bxb5 {[%clk 0:01:41]} 11. Qxb5 {[%clk 0:02:35.3]}
11... Qd5 {[%clk 0:01:37.3]} 12. Qxd5 {[%clk 0:02:11.3]} 12... Nxd5 {[%clk
0:01:36.6]} 13. Nxe5 {[%clk 0:02:12]} 13... Nxe5 {[%clk 0:01:33.7]} 14. Bxd5
{[%clk 0:02:12.1]} 14... Rb8 {[%clk 0:01:33.3]} 15. Be3 {[%clk 0:02:08.4]} 15...
a5 {[%clk 0:01:27.6]} 16. Rfc1 {[%clk 0:02:04.1]} 16... Bd6 {[%clk 0:01:26.4]}
17. Rc2 {[%clk 0:01:58.6]} 17... O-O {[%clk 0:01:24.3]} 18. Rac1 {[%clk
0:01:58.3]} 18... Rfe8 {[%clk 0:01:22.2]} 19. b3 {[%clk 0:01:54.9]} 19... Ng4
{[%clk 0:01:20.1]} 20. Ba7 {[%clk 0:01:53.4]} 20... Rbd8 {[%clk 0:01:16.7]} 21.
Bc6 {[%clk 0:01:50.7]} 21... Re7 {[%clk 0:01:15.2]} 22. h3 {[%clk 0:01:49.5]}
22... Nf6 {[%clk 0:01:11.5]} 23. Bf3 {[%clk 0:01:48.5]} 23... h6 {[%clk
0:01:09.3]} 24. Kg2 {[%clk 0:01:47.3]} 24... Nd7 {[%clk 0:01:04.7]} 25. Be3
{[%clk 0:01:33.6]} 25... Ne5 {[%clk 0:01:03.6]} 26. Bb7 {[%clk 0:01:24.6]} 26...
Nd7 {[%clk 0:01:01.6]} 27. Ba6 {[%clk 0:01:12.4]} 27... Nf6 {[%clk 0:01:00.7]}
28. Bc4 {[%clk 0:01:12.2]} 28... Rde8 {[%clk 0:00:59.7]} 29. Rd1 {[%clk
0:01:11.3]} 29... Ne4 {[%clk 0:00:55.1]} 30. Bd4 {[%clk 0:01:06.4]} 30... Ng5
{[%clk 0:00:52.5]} 31. h4 {[%clk 0:01:04.9]} 31... Ne6 {[%clk 0:00:52.2]} 32.
Be3 {[%clk 0:01:05.3]} 32... Nc5 {[%clk 0:00:50.8]} 33. Bxc5 {[%clk 0:01:01]}
33... Bxc5 {[%clk 0:00:49.4]} 34. Bxf7+ {[%clk 0:01:01.9]} 34... Kxf7 {[%clk
0:00:47.6]} 35. Rxc5 {[%clk 0:01:01.8]} 35... Rxe2 {[%clk 0:00:47.1]} 36. Rxa5
{[%clk 0:00:56.9]} 36... R8e7 {[%clk 0:00:45.5]} 37. h5 {[%clk 0:00:54.5]} 37...
Rb2 {[%clk 0:00:42.8]} 38. Rd4 {[%clk 0:00:54.3]} 38... g5 {[%clk 0:00:39.7]}
39. hxg6+ {[%clk 0:00:52.9]} 39... Kxg6 {[%clk 0:00:39.7]} 40. Rf4 {[%clk
0:00:50.2]} 40... Rd7 {[%clk 0:00:35]} 41. b4 {[%clk 0:00:48.7]} 41... Rf7
{[%clk 0:00:32.2]} 42. Rxf7 {[%clk 0:00:46.5]} 42... Kxf7 {[%clk 0:00:31.6]} 43.
a3 {[%clk 0:00:47.3]} 43... Rb3 {[%clk 0:00:30.1]} 44. Ra7 {[%clk 0:00:47]}
44... Kg6 {[%clk 0:00:28.2]} 45. f4 {[%clk 0:00:45]} 45... Kf5 {[%clk
0:00:25.3]} 46. Kh3 {[%clk 0:00:42.4]} 46... h5 {[%clk 0:00:24.2]} 47. Ra5+
{[%clk 0:00:38.9]} 47... Kg6 {[%clk 0:00:23.4]} 48. Kh4 {[%clk 0:00:34.3]} 48...
Rb1 {[%clk 0:00:22]} 49. Rg5+ {[%clk 0:00:34.5]} 49... Kf6 {[%clk 0:00:21.5]}
50. Kxh5 {[%clk 0:00:35.2]} 50... Rb3 {[%clk 0:00:20.1]} 51. Kg4 {[%clk
0:00:31.8]} 51... Rc3 {[%clk 0:00:17.2]} 52. Rc5 {[%clk 0:00:31]} 52... Rxa3
{[%clk 0:00:15.9]} 53. Rc6+ {[%clk 0:00:31]} 53... Kg7 {[%clk 0:00:15]} 54.
Rxc7+ {[%clk 0:00:31.9]} 54... Kg6 {[%clk 0:00:15.2]} 55. b5 {[%clk 0:00:32.1]}
55... Rb3 {[%clk 0:00:15]} 56. Rc6+ {[%clk 0:00:32.7]} 56... Kg7 {[%clk
0:00:13.7]} 57. b6 {[%clk 0:00:33.6]} 57... Kf7 {[%clk 0:00:13.4]} 58. Kf5
{[%clk 0:00:31.7]} 58... Rb5+ {[%clk 0:00:12.9]} 59. Ke4 {[%clk 0:00:30.9]}
59... Ke7 {[%clk 0:00:12.7]} 60. f5 {[%clk 0:00:30.5]} 60... Kd7 {[%clk
0:00:12.3]} 61. Re6 {[%clk 0:00:30.8]} 61... Rb4+ {[%clk 0:00:11.2]} 62. Ke5
{[%clk 0:00:31.3]} 62... Rb3 {[%clk 0:00:10.7]} 63. g4 {[%clk 0:00:31.4]} 63...
Rb4 {[%clk 0:00:10.3]} 64. g5 {[%clk 0:00:31.8]} 64... Rxb6 {[%clk 0:00:10.4]}
65. Rxb6 {[%clk 0:00:31.6]} 1-0

[Event "Late-Titled-Tuesday-Blitz-January-30-2024"]
[Site "Chess.com"]
[Date "2024.01.30"]
[Round "3"]
[White "GoltsevDmitry2000"]
[Black "Oleksandr_Bortnyk"]
[Result "0-1"]
[WhiteElo "2819"]
[BlackElo "3104"]
[TimeControl "180+1"]
[EndTime "14:29:08 PST"]
[Termination "Oleksandr_Bortnyk won on time"]

1. e4 {[%clk 0:03:00.9]} 1... a6 {[%clk 0:02:45.5]} 2. Nf3 {[%clk 0:02:59.6]}
2... g6 {[%clk 0:02:44.2]} 3. d4 {[%clk 0:02:59.1]} 3... Bg7 {[%clk 0:02:44.6]}
4. c3 {[%clk 0:02:59.2]} 4... c6 {[%clk 0:02:45]} 5. e5 {[%clk 0:02:58.9]} 5...
d6 {[%clk 0:02:42.3]} 6. Bd3 {[%clk 0:02:55.9]} 6... dxe5 {[%clk 0:02:40.8]} 7.
Nxe5 {[%clk 0:02:55.9]} 7... Nd7 {[%clk 0:02:40.7]} 8. Nxd7 {[%clk 0:02:51.1]}
8... Bxd7 {[%clk 0:02:38.5]} 9. O-O {[%clk 0:02:51.6]} 9... Nf6 {[%clk
0:02:38.4]} 10. Nd2 {[%clk 0:02:51.5]} 10... O-O {[%clk 0:02:37.9]} 11. Ne4
{[%clk 0:02:51.9]} 11... Nxe4 {[%clk 0:02:34.8]} 12. Bxe4 {[%clk 0:02:52.8]}
12... e5 {[%clk 0:02:34]} 13. dxe5 {[%clk 0:02:51.9]} 13... Bxe5 {[%clk
0:02:34.9]} 14. g3 {[%clk 0:02:43.6]} 14... Qc7 {[%clk 0:02:19.8]} 15. Bg2
{[%clk 0:02:42.3]} 15... Rad8 {[%clk 0:02:18.7]} 16. Bh6 {[%clk 0:02:37.7]}
16... Rfe8 {[%clk 0:02:17.5]} 17. Re1 {[%clk 0:02:33.6]} 17... Bf5 {[%clk
0:02:17.2]} 18. Qe2 {[%clk 0:02:27.7]} 18... Re6 {[%clk 0:02:05.3]} 19. Qc4
{[%clk 0:02:22.5]} 19... Rde8 {[%clk 0:01:58.4]} 20. Re3 {[%clk 0:02:02.4]}
20... Qb6 {[%clk 0:01:36.2]} 21. Qb3 {[%clk 0:01:29.4]} 21... Qxb3 {[%clk
0:01:32.4]} 22. axb3 {[%clk 0:01:30.3]} 22... Bg7 {[%clk 0:01:32.4]} 23. Rxe6
{[%clk 0:01:20.6]} 23... Bxe6 {[%clk 0:01:29.7]} 24. Bxg7 {[%clk 0:01:19.1]}
24... Kxg7 {[%clk 0:01:30.6]} 25. b4 {[%clk 0:01:14.3]} 25... Rd8 {[%clk
0:01:30.8]} 26. Bf3 {[%clk 0:00:47.5]} 26... Rd2 {[%clk 0:01:30.3]} 27. Kg2
{[%clk 0:00:29.4]} 27... Rxb2 {[%clk 0:01:29.3]} 28. Rd1 {[%clk 0:00:30]} 28...
Rc2 {[%clk 0:01:17.4]} 29. Rd8 {[%clk 0:00:19.9]} 29... Rxc3 {[%clk 0:01:04.3]}
30. Rb8 {[%clk 0:00:20.5]} 30... Rb3 {[%clk 0:00:37.3]} 31. Rxb7 {[%clk
0:00:20]} 31... c5 {[%clk 0:00:38.1]} 32. Ra7 {[%clk 0:00:11.6]} 32... cxb4
{[%clk 0:00:36.2]} 33. Rxa6 {[%clk 0:00:12.2]} 33... Rc3 {[%clk 0:00:25]} 34.
Rb6 {[%clk 0:00:11.9]} 34... b3 {[%clk 0:00:25.6]} 35. Bd1 {[%clk 0:00:05.8]}
35... h5 {[%clk 0:00:24.4]} 36. h4 {[%clk 0:00:03.9]} 36... Bc4 {[%clk
0:00:17.6]} 37. Bf3 {[%clk 0:00:03.7]} 37... Kf8 {[%clk 0:00:14.5]} 38. Be4
{[%clk 0:00:03.6]} 38... Ke7 {[%clk 0:00:13.9]} 39. Rb7+ {[%clk 0:00:03.9]}
39... Kd6 {[%clk 0:00:14.1]} 40. Rb6+ {[%clk 0:00:03.3]} 40... Ke5 {[%clk
0:00:11.9]} 41. Bf3 {[%clk 0:00:03.1]} 41... Rc1 {[%clk 0:00:07.5]} 42. Rb8
{[%clk 0:00:02.6]} 42... Kd4 {[%clk 0:00:07.9]} 43. Bc6 {[%clk 0:00:01.9]} 43...
Bf1+ {[%clk 0:00:05.2]} 44. Kh2 {[%clk 0:00:01.8]} 44... Rxc6 {[%clk 0:00:05.3]}
45. Rxb3 {[%clk 0:00:01.5]} 45... Bc4 {[%clk 0:00:04.3]} 46. Re3 {[%clk
0:00:01.9]} 46... Bd5 {[%clk 0:00:05.2]} 47. Kh3 {[%clk 0:00:01.3]} 47... Rc1
{[%clk 0:00:04.9]} 0-1